[Event "Titled Tuesday Blitz April 05 Early 2022"]
[White "Buscar, Michael"]
[Black "Hernandez Jimenez, Alexander Andres"]
[WhiteFideId "2603616"]
[BlackFideId "3900452"]
[WhiteElo "2010"]
[BlackElo "2098"]
[Result "1-0"]
[Round "09"]
[TimeControl "180+1"]
[Date "2022.04.05"]
[WhiteClock "0:00:10"]
[BlackClock "0:00:12"]

1. Nf3 {[%clk 0:02:35]}  c5 {[%clk 0:02:56]} 2. g3 {[%clk 0:02:35]}  b6 {[%clk 0:02:56]} 3. Bg2 {[%clk 0:02:35]}  Bb7 {[%clk 0:02:55]} 4. b3 {[%clk 0:02:36]}  Nf6 {[%clk 0:02:54]} 5. Bb2 {[%clk 0:02:36]}  e6 {[%clk 0:02:54]} 6. c4 {[%clk 0:02:36]}  d5 {[%clk 0:02:55]} 7. cxd5 {[%clk 0:02:34]}  Nxd5 {[%clk 0:02:49]} 8. O-O {[%clk 0:02:33]}  Nc6 {[%clk 0:02:48]} 9. Nc3 {[%clk 0:02:29]}  Be7 {[%clk 0:02:48]} 10. Nxd5 {[%clk 0:02:22]}  exd5 {[%clk 0:02:47]} 11. Bxg7 {[%clk 0:02:22]}  Rg8 {[%clk 0:02:46]} 12. Bb2 {[%clk 0:02:21]}  d4 {[%clk 0:02:45]} 13. d3 {[%clk 0:02:22]}  h5 {[%clk 0:02:44]} 14. h4 {[%clk 0:02:17]}  Qd7 {[%clk 0:02:40]} 15. Bc1 {[%clk 0:02:17]}  O-O-O {[%clk 0:02:39]} 16. Bf4 {[%clk 0:02:14]}  Nb4 {[%clk 0:02:34]} 17. Ne5 {[%clk 0:02:07]}  Qf5 {[%clk 0:02:18]} 18. f3 {[%clk 0:00:59]}  f6 {[%clk 0:01:58]} 19. Nf7 {[%clk 0:00:54]}  Rdf8 {[%clk 0:01:56]} 20. Nh6 {[%clk 0:00:53]}  Qg6 {[%clk 0:01:51]} 21. Nxg8 {[%clk 0:00:46]}  Rxg8 {[%clk 0:01:50]} 22. Bh3+ {[%clk 0:00:45]}  Kd8 {[%clk 0:01:48]} 23. Qd2 {[%clk 0:00:37]}  Nd5 {[%clk 0:01:48]} 24. Kh2 {[%clk 0:00:30]}  Ne3 {[%clk 0:01:43]} 25. Rg1 {[%clk 0:00:26]}  Nf5 {[%clk 0:01:33]} 26. b4 {[%clk 0:00:20]}  cxb4 {[%clk 0:01:10]} 27. Rac1 {[%clk 0:00:20]}  Bc5 {[%clk 0:01:10]} 28. Rc4 {[%clk 0:00:17]}  Ne3 {[%clk 0:01:10]} 29. Rxb4 {[%clk 0:00:16]}  f5 {[%clk 0:00:56]} 30. Rb5 {[%clk 0:00:16]}  Qc6 {[%clk 0:00:52]} 31. a4 {[%clk 0:00:15]}  a6 {[%clk 0:00:42]} 32. Rbb1 {[%clk 0:00:15]}  Bd6 {[%clk 0:00:24]} 33. Bg5+ {[%clk 0:00:14]}  Ke8 {[%clk 0:00:22]} 34. Bxe3 {[%clk 0:00:12]}  dxe3 {[%clk 0:00:20]} 35. Qxe3+ {[%clk 0:00:12]}  Kf7 {[%clk 0:00:20]} 36. Bxf5 {[%clk 0:00:12]}  Qc7 {[%clk 0:00:16]} 37. Qe6+ {[%clk 0:00:12]}  Kf8 {[%clk 0:00:15]} 38. f4 {[%clk 0:00:11]}  Bxf4 {[%clk 0:00:15]} 39. Qf6+ {[%clk 0:00:10]}  Ke8 {[%clk 0:00:14]} 40. Bg6+ {[%clk 0:00:10]}  Kd7 {[%clk 0:00:12]} 41. gxf4 {[%clk 0:00:10]}  Qxf4+ {[%clk 0:00:12]} 42. Qxf4 {[%clk 0:00:10]} 1-0


[Site "https://www.chess.com"]

[Event "Titled Tuesday Blitz April 05 Early 2022"]
[White "Chincholimath, Halsagar"]
[Black "Odegov, Artem"]
[WhiteFideId "5022487"]
[BlackFideId "34183644"]
[WhiteElo "1737"]
[BlackElo "2286"]
[Result "0-1"]
[Round "09"]
[TimeControl "180+1"]
[Date "2022.04.05"]
[WhiteClock "0:00:02"]
[BlackClock "0:01:09"]

1. e4 {[%clk 0:02:02]}  e6 {[%clk 0:02:59]} 2. d4 {[%clk 0:02:00]}  d5 {[%clk 0:02:59]} 3. e5 {[%clk 0:01:58]}  c5 {[%clk 0:02:58]} 4. c3 {[%clk 0:01:58]}  Qb6 {[%clk 0:02:58]} 5. Nf3 {[%clk 0:01:57]}  Bd7 {[%clk 0:02:56]} 6. a4 {[%clk 0:01:54]}  Nc6 {[%clk 0:02:55]} 7. Bd3 {[%clk 0:01:53]}  cxd4 {[%clk 0:02:54]} 8. cxd4 {[%clk 0:01:51]}  Bb4+ {[%clk 0:02:53]} 9. Nc3 {[%clk 0:01:49]}  Nxd4 {[%clk 0:02:53]} 10. O-O {[%clk 0:01:43]}  Nxf3+ {[%clk 0:02:50]} 11. Qxf3 {[%clk 0:01:44]}  Ne7 {[%clk 0:02:49]} 12. Qg3 {[%clk 0:01:30]}  O-O-O {[%clk 0:02:26]} 13. Nb5 {[%clk 0:01:14]}  Bxb5 {[%clk 0:02:08]} 14. axb5 {[%clk 0:01:15]}  Bc5 {[%clk 0:02:07]} 15. Bg5 {[%clk 0:01:02]}  Kb8 {[%clk 0:02:04]} 16. Rfc1 {[%clk 0:00:57]}  Rc8 {[%clk 0:01:57]} 17. Qh4 {[%clk 0:00:51]}  Ng6 {[%clk 0:01:54]} 18. Qg3 {[%clk 0:00:43]}  Bd4 {[%clk 0:01:52]} 19. Re1 {[%clk 0:00:29]}  Rc7 {[%clk 0:01:48]} 20. Re2 {[%clk 0:00:24]}  Rhc8 {[%clk 0:01:45]} 21. Kh1 {[%clk 0:00:20]}  Nf8 {[%clk 0:01:34]} 22. f3 {[%clk 0:00:14]}  h6 {[%clk 0:01:31]} 23. Bd2 {[%clk 0:00:14]}  g5 {[%clk 0:01:31]} 24. Ba5 {[%clk 0:00:13]}  Rc1+ {[%clk 0:01:30]} 25. Rxc1 {[%clk 0:00:11]}  Rxc1+ {[%clk 0:01:31]} 26. Re1 {[%clk 0:00:10]}  Rxe1+ {[%clk 0:01:26]} 27. Qxe1 {[%clk 0:00:09]}  Qc5 {[%clk 0:01:20]} 28. Bb4 {[%clk 0:00:08]}  Qc8 {[%clk 0:01:20]} 29. Bd6+ {[%clk 0:00:05]}  Ka8 {[%clk 0:01:20]} 30. h3 {[%clk 0:00:05]}  Nd7 {[%clk 0:01:20]} 31. Qb4 {[%clk 0:00:05]}  Bb6 {[%clk 0:01:20]} 32. Kh2 {[%clk 0:00:03]}  Qc1 {[%clk 0:01:19]} 33. Qa3 {[%clk 0:00:02]}  Bg1+ {[%clk 0:01:10]} 34. Kg3 {[%clk 0:00:02]}  Qf4# {[%clk 0:01:09]} 0-1


[Site "https://www.chess.com"]

[Event "Titled Tuesday Blitz April 05 Early 2022"]
[White "Ciolacu, Alessia-Mihaela"]
[Black "Biletskiy, Danylo"]
[WhiteFideId "1252640"]
[BlackFideId "14155419"]
[WhiteElo "1804"]
[BlackElo "2087"]
[Result "0-1"]
[Round "09"]
[TimeControl "180+1"]
[Date "2022.04.05"]
[WhiteClock "0:00:04"]
[BlackClock "0:01:09"]

1. b3 {[%clk 0:03:00]}  e5 {[%clk 0:02:49]} 2. Bb2 {[%clk 0:02:59]}  d6 {[%clk 0:02:49]} 3. Nf3 {[%clk 0:02:58]}  c5 {[%clk 0:02:48]} 4. c4 {[%clk 0:02:57]}  Nc6 {[%clk 0:02:46]} 5. g3 {[%clk 0:02:57]}  g6 {[%clk 0:02:45]} 6. Bg2 {[%clk 0:02:57]}  Bg7 {[%clk 0:02:41]} 7. O-O {[%clk 0:02:55]}  Nge7 {[%clk 0:02:42]} 8. d3 {[%clk 0:02:53]}  O-O {[%clk 0:02:42]} 9. Nc3 {[%clk 0:02:50]}  f5 {[%clk 0:02:40]} 10. Ne1 {[%clk 0:02:50]}  h6 {[%clk 0:02:40]} 11. Nc2 {[%clk 0:02:49]}  Nd4 {[%clk 0:02:40]} 12. Ne3 {[%clk 0:02:48]}  Rb8 {[%clk 0:02:39]} 13. Ned5 {[%clk 0:02:36]}  Be6 {[%clk 0:02:38]} 14. a3 {[%clk 0:02:31]}  Kh7 {[%clk 0:02:30]} 15. b4 {[%clk 0:02:29]}  b6 {[%clk 0:02:29]} 16. e3 {[%clk 0:02:23]}  Ndc6 {[%clk 0:02:28]} 17. b5 {[%clk 0:01:57]}  Bxd5 {[%clk 0:02:28]} 18. Nxd5 {[%clk 0:01:51]}  Nxd5 {[%clk 0:02:26]} 19. Bxd5 {[%clk 0:01:39]}  Ne7 {[%clk 0:02:26]} 20. Bg2 {[%clk 0:01:39]}  f4 {[%clk 0:02:26]} 21. Be4 {[%clk 0:01:34]}  Nf5 {[%clk 0:02:25]} 22. Qe2 {[%clk 0:01:28]}  Qg5 {[%clk 0:02:24]} 23. exf4 {[%clk 0:01:28]}  exf4 {[%clk 0:02:24]} 24. Bxg7 {[%clk 0:01:28]}  Kxg7 {[%clk 0:02:24]} 25. h4 {[%clk 0:01:25]}  Nxh4 {[%clk 0:02:21]} 26. Kh2 {[%clk 0:01:20]}  Nf5 {[%clk 0:02:05]} 27. Rg1 {[%clk 0:01:16]}  fxg3+ {[%clk 0:02:05]} 28. fxg3 {[%clk 0:01:16]}  Nd4 {[%clk 0:02:04]} 29. Qg2 {[%clk 0:01:09]}  Qh5+ {[%clk 0:02:00]} 30. Qh3 {[%clk 0:01:08]}  Rf2+ {[%clk 0:02:00]} 31. Rg2 {[%clk 0:01:07]}  Rxg2+ {[%clk 0:01:58]} 32. Bxg2 {[%clk 0:01:02]}  Qxh3+ {[%clk 0:01:56]} 33. Kxh3 {[%clk 0:01:00]}  Re8 {[%clk 0:01:56]} 34. Be4 {[%clk 0:00:59]}  Ne6 {[%clk 0:01:51]} 35. a4 {[%clk 0:00:58]}  Ng5+ {[%clk 0:01:49]} 36. Kg2 {[%clk 0:00:57]}  Nxe4 {[%clk 0:01:50]} 37. dxe4 {[%clk 0:00:55]}  Rxe4 {[%clk 0:01:51]} 38. a5 {[%clk 0:00:51]}  Rxc4 {[%clk 0:01:50]} 39. axb6 {[%clk 0:00:51]}  axb6 {[%clk 0:01:51]} 40. Ra6 {[%clk 0:00:51]}  Rb4 {[%clk 0:01:49]} 41. Rxb6 {[%clk 0:00:51]}  d5 {[%clk 0:01:49]} 42. Rd6 {[%clk 0:00:43]}  Rxb5 {[%clk 0:01:48]} 43. Rxd5 {[%clk 0:00:43]}  Rb2+ {[%clk 0:01:49]} 44. Kf3 {[%clk 0:00:43]}  Rc2 {[%clk 0:01:48]} 45. g4 {[%clk 0:00:37]}  c4 {[%clk 0:01:46]} 46. Rc5 {[%clk 0:00:37]}  c3 {[%clk 0:01:45]} 47. Ke4 {[%clk 0:00:34]}  Rc1 {[%clk 0:01:44]} 48. Kd5 {[%clk 0:00:34]}  Kf6 {[%clk 0:01:40]} 49. Rc4 {[%clk 0:00:26]}  Kg5 {[%clk 0:01:35]} 50. Kc5 {[%clk 0:00:15]}  h5 {[%clk 0:01:18]} 51. gxh5 {[%clk 0:00:14]}  gxh5 {[%clk 0:01:18]} 52. Kd4 {[%clk 0:00:14]}  h4 {[%clk 0:01:17]} 53. Ke3 {[%clk 0:00:13]}  h3 {[%clk 0:01:13]} 54. Kf2 {[%clk 0:00:13]}  c2 {[%clk 0:01:13]} 55. Ke2 {[%clk 0:00:10]}  h2 {[%clk 0:01:10]} 56. Rc5+ {[%clk 0:00:06]}  Kf6 {[%clk 0:01:09]} 57. Rh5 {[%clk 0:00:04]}  h1=Q {[%clk 0:01:09]} 0-1


[Site "https://www.chess.com"]

[Event "Titled Tuesday Blitz April 05 Early 2022"]
[White "Coto Mederos, Michel"]
[Black "Legenia, Artem"]
[WhiteFideId "3508528"]
[BlackFideId "14136945"]
[WhiteElo "2427"]
[BlackElo "1936"]
[Result "1-0"]
[Round "09"]
[TimeControl "180+1"]
[Date "2022.04.05"]
[WhiteClock "0:01:03"]
[BlackClock "0:01:23"]

1. d4 {[%clk 0:03:00]}  d5 {[%clk 0:02:43]} 2. c4 {[%clk 0:02:57]}  e6 {[%clk 0:02:38]} 3. Nc3 {[%clk 0:02:57]}  c6 {[%clk 0:02:37]} 4. cxd5 {[%clk 0:02:56]}  exd5 {[%clk 0:02:37]} 5. Nf3 {[%clk 0:02:55]}  Nf6 {[%clk 0:02:38]} 6. Bg5 {[%clk 0:02:55]}  Bb4 {[%clk 0:02:37]} 7. Bxf6 {[%clk 0:02:03]}  Qxf6 {[%clk 0:02:37]} 8. e3 {[%clk 0:02:04]}  O-O {[%clk 0:02:28]} 9. Be2 {[%clk 0:02:02]}  Bxc3+ {[%clk 0:02:21]} 10. bxc3 {[%clk 0:02:01]}  Bg4 {[%clk 0:02:22]} 11. Ne5 {[%clk 0:01:57]}  Bxe2 {[%clk 0:02:06]} 12. Qxe2 {[%clk 0:01:58]}  Qe7 {[%clk 0:02:06]} 13. O-O {[%clk 0:01:51]}  Nd7 {[%clk 0:01:54]} 14. Nxd7 {[%clk 0:01:48]}  Qxd7 {[%clk 0:01:54]} 15. c4 {[%clk 0:01:49]}  dxc4 {[%clk 0:01:52]} 16. Qxc4 {[%clk 0:01:48]}  Qd5 {[%clk 0:01:52]} 17. Qxd5 {[%clk 0:01:45]}  cxd5 {[%clk 0:01:51]} 18. Rab1 {[%clk 0:01:45]}  b6 {[%clk 0:01:51]} 19. Rb5 {[%clk 0:01:46]}  Rfd8 {[%clk 0:01:49]} 20. Rc1 {[%clk 0:01:42]}  Rac8 {[%clk 0:01:43]} 21. Rxc8 {[%clk 0:01:42]}  Rxc8 {[%clk 0:01:43]} 22. g3 {[%clk 0:01:43]}  Rd8 {[%clk 0:01:43]} 23. a4 {[%clk 0:01:43]}  Kf8 {[%clk 0:01:42]} 24. a5 {[%clk 0:01:43]}  bxa5 {[%clk 0:01:42]} 25. Rxa5 {[%clk 0:01:44]}  Rd7 {[%clk 0:01:42]} 26. Kf1 {[%clk 0:01:34]}  Ke7 {[%clk 0:01:42]} 27. Ke2 {[%clk 0:01:33]}  Ke6 {[%clk 0:01:42]} 28. Ra6+ {[%clk 0:01:32]}  Ke7 {[%clk 0:01:42]} 29. Kd3 {[%clk 0:01:28]}  Rb7 {[%clk 0:01:42]} 30. h4 {[%clk 0:01:17]}  h5 {[%clk 0:01:37]} 31. Ke2 {[%clk 0:01:17]}  g6 {[%clk 0:01:33]} 32. Kf3 {[%clk 0:01:18]}  Kd7 {[%clk 0:01:31]} 33. Kf4 {[%clk 0:01:16]}  Ke7 {[%clk 0:01:25]} 34. Ke5 {[%clk 0:01:12]}  Rb2 {[%clk 0:01:25]} 35. Rxa7+ {[%clk 0:01:11]}  Kf8 {[%clk 0:01:25]} 36. f4 {[%clk 0:01:04]}  Rg2 {[%clk 0:01:25]} 37. Kf6 {[%clk 0:01:04]}  Rxg3 {[%clk 0:01:23]} 38. Ra8# {[%clk 0:01:03]} 1-0


[Site "https://www.chess.com"]

[Event "Titled Tuesday Blitz April 05 Early 2022"]
[White "Estrada Nieto, Julian"]
[Black "Yushko, Olga"]
[WhiteFideId "5101018"]
[BlackFideId "14114500"]
[WhiteElo "2252"]
[BlackElo "2028"]
[Result "1-0"]
[Round "09"]
[TimeControl "180+1"]
[Date "2022.04.05"]
[WhiteClock "0:01:13"]
[BlackClock "0:01:26"]

1. e4 {[%clk 0:03:00]}  d6 {[%clk 0:02:59]} 2. d4 {[%clk 0:03:00]}  e5 {[%clk 0:02:59]} 3. Nf3 {[%clk 0:02:58]}  Nf6 {[%clk 0:02:59]} 4. Nc3 {[%clk 0:02:57]}  Nbd7 {[%clk 0:02:58]} 5. Bc4 {[%clk 0:02:56]}  Be7 {[%clk 0:02:59]} 6. O-O {[%clk 0:02:57]}  O-O {[%clk 0:02:59]} 7. Re1 {[%clk 0:02:57]}  c6 {[%clk 0:02:59]} 8. a4 {[%clk 0:02:57]}  Qc7 {[%clk 0:02:55]} 9. a5 {[%clk 0:02:56]}  h6 {[%clk 0:02:53]} 10. h3 {[%clk 0:02:46]}  Re8 {[%clk 0:02:53]} 11. Nh4 {[%clk 0:02:44]}  Nf8 {[%clk 0:02:51]} 12. dxe5 {[%clk 0:02:34]}  dxe5 {[%clk 0:02:49]} 13. Qf3 {[%clk 0:02:35]}  Be6 {[%clk 0:02:35]} 14. Bxe6 {[%clk 0:02:26]}  Nxe6 {[%clk 0:02:36]} 15. Nf5 {[%clk 0:02:27]}  Bf8 {[%clk 0:02:36]} 16. Nxh6+ {[%clk 0:02:21]}  gxh6 {[%clk 0:02:36]} 17. Qxf6 {[%clk 0:02:21]}  Bg7 {[%clk 0:02:36]} 18. Qh4 {[%clk 0:02:19]}  Nd4 {[%clk 0:02:32]} 19. Bxh6 {[%clk 0:02:12]}  Nxc2 {[%clk 0:02:27]} 20. Bxg7 {[%clk 0:02:03]}  Kxg7 {[%clk 0:02:26]} 21. Qg5+ {[%clk 0:02:03]}  Kf8 {[%clk 0:02:24]} 22. Ne2 {[%clk 0:01:47]}  Nxa1 {[%clk 0:02:22]} 23. Rxa1 {[%clk 0:01:46]}  Qd6 {[%clk 0:02:11]} 24. Ng3 {[%clk 0:01:45]}  Qg6 {[%clk 0:02:09]} 25. Qh4 {[%clk 0:01:43]}  f6 {[%clk 0:01:54]} 26. Nf5 {[%clk 0:01:36]}  Kf7 {[%clk 0:01:54]} 27. Rd1 {[%clk 0:01:17]}  Kg8 {[%clk 0:01:46]} 28. Rd3 {[%clk 0:01:15]}  Qh7 {[%clk 0:01:26]} 29. Rg3+ {[%clk 0:01:14]}  Kh8 {[%clk 0:01:26]} 30. Qxf6+ {[%clk 0:01:13]} 1-0


[Site "https://www.chess.com"]

[Event "Titled Tuesday Blitz April 05 Early 2022"]
[White "Ezat, Mohamed"]
[Black "Chernov, Mikhail"]
[WhiteFideId "10600906"]
[BlackFideId "24143170"]
[WhiteElo "2386"]
[BlackElo "2189"]
[Result "0-1"]
[Round "09"]
[TimeControl "180+1"]
[Date "2022.04.05"]
[WhiteClock "0:00:05"]
[BlackClock "0:00:01"]

1. d4 {[%clk 0:02:40]}  d5 {[%clk 0:03:00]} 2. c4 {[%clk 0:02:39]}  c6 {[%clk 0:03:00]} 3. Nc3 {[%clk 0:02:39]}  Nf6 {[%clk 0:03:00]} 4. cxd5 {[%clk 0:02:37]}  cxd5 {[%clk 0:03:01]} 5. Bf4 {[%clk 0:02:37]}  Nc6 {[%clk 0:03:01]} 6. e3 {[%clk 0:02:36]}  a6 {[%clk 0:03:02]} 7. Bd3 {[%clk 0:02:33]}  e6 {[%clk 0:02:59]} 8. Rc1 {[%clk 0:02:31]}  Be7 {[%clk 0:02:59]} 9. h3 {[%clk 0:02:24]}  O-O {[%clk 0:02:58]} 10. Nf3 {[%clk 0:02:21]}  Bd6 {[%clk 0:02:53]} 11. Bxd6 {[%clk 0:02:08]}  Qxd6 {[%clk 0:02:54]} 12. O-O {[%clk 0:02:08]}  e5 {[%clk 0:02:48]} 13. dxe5 {[%clk 0:02:03]}  Nxe5 {[%clk 0:02:49]} 14. Be2 {[%clk 0:02:03]}  Nxf3+ {[%clk 0:02:37]} 15. Bxf3 {[%clk 0:02:03]}  Be6 {[%clk 0:02:38]} 16. Qd4 {[%clk 0:02:02]}  Rfd8 {[%clk 0:02:34]} 17. Rfd1 {[%clk 0:02:00]}  Qe7 {[%clk 0:02:10]} 18. Qb6 {[%clk 0:01:55]}  Rac8 {[%clk 0:01:59]} 19. Na4 {[%clk 0:01:36]}  d4 {[%clk 0:01:37]} 20. Rxc8 {[%clk 0:01:21]}  Rxc8 {[%clk 0:01:30]} 21. Qxd4 {[%clk 0:01:09]}  Bxa2 {[%clk 0:01:28]} 22. Nb6 {[%clk 0:01:08]}  Re8 {[%clk 0:01:20]} 23. Rc1 {[%clk 0:00:55]}  Be6 {[%clk 0:01:11]} 24. Qc3 {[%clk 0:00:53]}  Qd6 {[%clk 0:01:08]} 25. Qc7 {[%clk 0:00:52]}  Qd2 {[%clk 0:00:56]} 26. Rc2 {[%clk 0:00:44]}  Qe1+ {[%clk 0:00:52]} 27. Kh2 {[%clk 0:00:43]}  Bf5 {[%clk 0:00:36]} 28. Re2 {[%clk 0:00:35]}  Qb4 {[%clk 0:00:29]} 29. e4 {[%clk 0:00:16]}  Bxe4 {[%clk 0:00:19]} 30. Bxe4 {[%clk 0:00:15]}  Nxe4 {[%clk 0:00:19]} 31. Qxb7 {[%clk 0:00:08]}  Qd6+ {[%clk 0:00:19]} 32. g3 {[%clk 0:00:07]}  Nf6 {[%clk 0:00:14]} 33. Rxe8+ {[%clk 0:00:07]}  Nxe8 {[%clk 0:00:15]} 34. Qxa6 {[%clk 0:00:07]}  Qd4 {[%clk 0:00:14]} 35. Kg2 {[%clk 0:00:07]}  Qxb2 {[%clk 0:00:15]} 36. Qc8 {[%clk 0:00:05]}  Qe5 {[%clk 0:00:13]} 37. Nd7 {[%clk 0:00:06]}  Qe4+ {[%clk 0:00:10]} 38. Kg1 {[%clk 0:00:06]}  h6 {[%clk 0:00:07]} 39. Nc5 {[%clk 0:00:06]}  Qe1+ {[%clk 0:00:07]} 40. Kg2 {[%clk 0:00:06]}  Qe7 {[%clk 0:00:07]} 41. Qf5 {[%clk 0:00:05]}  Nd6 {[%clk 0:00:06]} 42. Qd5 {[%clk 0:00:06]}  Qf6 {[%clk 0:00:04]} 43. h4 {[%clk 0:00:06]}  Kh7 {[%clk 0:00:04]} 44. Qd3+ {[%clk 0:00:06]}  Qg6 {[%clk 0:00:04]} 45. Qd5 {[%clk 0:00:06]}  Qf6 {[%clk 0:00:05]} 46. h5 {[%clk 0:00:06]}  Nf5 {[%clk 0:00:05]} 47. Ne4 {[%clk 0:00:05]}  Qe6 {[%clk 0:00:04]} 48. Qd3 {[%clk 0:00:05]}  Kg8 {[%clk 0:00:04]} 49. g4 {[%clk 0:00:05]}  Ne7 {[%clk 0:00:04]} 50. Ng3 {[%clk 0:00:04]}  Qe5 {[%clk 0:00:02]} 51. Qd8+ {[%clk 0:00:04]}  Kh7 {[%clk 0:00:02]} 52. Qd3+ {[%clk 0:00:04]}  Kg8 {[%clk 0:00:02]} 53. f3 {[%clk 0:00:05]}  Qc7 {[%clk 0:00:02]} 54. Qe4 {[%clk 0:00:05]}  Nc6 {[%clk 0:00:01]} 0-1


[Site "https://www.chess.com"]

[Event "Titled Tuesday Blitz April 05 Early 2022"]
[White "Garv Gaur"]
[Black "Terletsky, Oleg"]
[WhiteFideId "45030839"]
[BlackFideId "14116774"]
[WhiteElo "1950"]
[BlackElo "2064"]
[Result "0-1"]
[Round "09"]
[TimeControl "180+1"]
[Date "2022.04.05"]
[WhiteClock "0:00:07"]
[BlackClock "0:00:04"]

1. d4 {[%clk 0:03:00]}  Nf6 {[%clk 0:02:59]} 2. Nf3 {[%clk 0:03:00]}  g6 {[%clk 0:02:59]} 3. c4 {[%clk 0:03:00]}  Bg7 {[%clk 0:02:57]} 4. g3 {[%clk 0:03:00]}  O-O {[%clk 0:02:56]} 5. Bg2 {[%clk 0:02:59]}  d6 {[%clk 0:02:57]} 6. O-O {[%clk 0:02:59]}  Nbd7 {[%clk 0:02:58]} 7. Nc3 {[%clk 0:02:59]}  e5 {[%clk 0:02:58]} 8. e4 {[%clk 0:02:58]}  exd4 {[%clk 0:02:58]} 9. Nxd4 {[%clk 0:02:59]}  Re8 {[%clk 0:02:59]} 10. h3 {[%clk 0:02:59]}  Nc5 {[%clk 0:02:57]} 11. Re1 {[%clk 0:02:58]}  Bd7 {[%clk 0:02:56]} 12. Kh2 {[%clk 0:02:54]}  h5 {[%clk 0:02:35]} 13. Bg5 {[%clk 0:02:50]}  Ng4+ {[%clk 0:02:18]} 14. Qxg4 {[%clk 0:02:30]}  hxg4 {[%clk 0:02:18]} 15. Bxd8 {[%clk 0:02:30]}  Raxd8 {[%clk 0:02:17]} 16. Rad1 {[%clk 0:02:26]}  Ne6 {[%clk 0:01:40]} 17. Nxe6 {[%clk 0:01:54]}  Bxe6 {[%clk 0:01:41]} 18. Nd5 {[%clk 0:01:54]}  c6 {[%clk 0:01:24]} 19. Nc7 {[%clk 0:01:52]}  Re7 {[%clk 0:01:11]} 20. Nxe6 {[%clk 0:01:51]}  Rxe6 {[%clk 0:01:11]} 21. hxg4 {[%clk 0:01:47]}  Bxb2 {[%clk 0:01:10]} 22. Rb1 {[%clk 0:01:46]}  Bd4 {[%clk 0:01:02]} 23. Rxb7 {[%clk 0:01:43]}  Bxf2 {[%clk 0:00:55]} 24. Rf1 {[%clk 0:01:42]}  Bd4 {[%clk 0:00:30]} 25. Rfxf7 {[%clk 0:01:36]}  Rf8 {[%clk 0:00:22]} 26. Rxf8+ {[%clk 0:01:34]}  Kxf8 {[%clk 0:00:22]} 27. Bf3 {[%clk 0:01:28]}  g5 {[%clk 0:00:20]} 28. Rc7 {[%clk 0:01:25]}  Re5 {[%clk 0:00:10]} 29. Rxc6 {[%clk 0:01:15]}  Ra5 {[%clk 0:00:10]} 30. Rxd6 {[%clk 0:01:14]}  Rxa2+ {[%clk 0:00:09]} 31. Kh3 {[%clk 0:01:13]}  Bg1 {[%clk 0:00:07]} 32. Bg2 {[%clk 0:01:13]}  a5 {[%clk 0:00:07]} 33. Rd1 {[%clk 0:01:13]}  Bc5 {[%clk 0:00:04]} 34. e5 {[%clk 0:01:09]}  a4 {[%clk 0:00:04]} 35. Bd5 {[%clk 0:00:38]}  a3 {[%clk 0:00:04]} 36. e6 {[%clk 0:00:37]}  Rf2 {[%clk 0:00:03]} 37. Ra1 {[%clk 0:00:30]}  a2 {[%clk 0:00:03]} 38. Be4 {[%clk 0:00:27]}  Bd4 {[%clk 0:00:03]} 39. e7+ {[%clk 0:00:21]}  Kxe7 {[%clk 0:00:03]} 40. Re1 {[%clk 0:00:14]}  a1=Q {[%clk 0:00:04]} 41. Bb1+ {[%clk 0:00:13]}  Kd6 {[%clk 0:00:03]} 42. c5+ {[%clk 0:00:11]}  Bxc5 {[%clk 0:00:03]} 43. Rd1+ {[%clk 0:00:11]}  Kc7 {[%clk 0:00:03]} 44. Rc1 {[%clk 0:00:08]}  Qh8+ {[%clk 0:00:03]} 45. Bh7 {[%clk 0:00:07]}  Qxh7# {[%clk 0:00:04]} 0-1


[Site "https://www.chess.com"]

[Event "Titled Tuesday Blitz April 05 Early 2022"]
[White "Harshavardhan G B"]
[Black "Niyazgulova, Marina"]
[WhiteFideId "25059009"]
[BlackFideId "24142573"]
[WhiteElo "1831"]
[BlackElo "2046"]
[Result "0-1"]
[Round "09"]
[TimeControl "180+1"]
[Date "2022.04.05"]
[WhiteClock "0:00:04"]
[BlackClock "0:00:28"]

1. e4 {[%clk 0:03:00]}  d5 {[%clk 0:02:53]} 2. exd5 {[%clk 0:02:59]}  Qxd5 {[%clk 0:02:53]} 3. Nc3 {[%clk 0:02:58]}  Qd6 {[%clk 0:02:53]} 4. d4 {[%clk 0:02:54]}  Nf6 {[%clk 0:02:53]} 5. Nb5 {[%clk 0:02:49]}  Qb6 {[%clk 0:02:48]} 6. c4 {[%clk 0:02:48]}  c6 {[%clk 0:02:48]} 7. Nc3 {[%clk 0:02:33]}  Bf5 {[%clk 0:02:48]} 8. Nf3 {[%clk 0:02:22]}  e6 {[%clk 0:02:47]} 9. Be2 {[%clk 0:02:14]}  Be7 {[%clk 0:02:40]} 10. O-O {[%clk 0:02:12]}  O-O {[%clk 0:02:39]} 11. b3 {[%clk 0:02:04]}  Nbd7 {[%clk 0:02:36]} 12. Be3 {[%clk 0:02:02]}  Qa5 {[%clk 0:02:33]} 13. Rc1 {[%clk 0:01:58]}  Bb4 {[%clk 0:02:31]} 14. Na4 {[%clk 0:01:48]}  Ne4 {[%clk 0:02:18]} 15. Bd3 {[%clk 0:01:44]}  b5 {[%clk 0:02:12]} 16. cxb5 {[%clk 0:01:37]}  cxb5 {[%clk 0:02:12]} 17. Nc5 {[%clk 0:01:31]}  Ndxc5 {[%clk 0:02:07]} 18. dxc5 {[%clk 0:01:29]}  Nc3 {[%clk 0:02:06]} 19. Qc2 {[%clk 0:01:26]}  Bxd3 {[%clk 0:02:02]} 20. Qxd3 {[%clk 0:01:27]}  Rfd8 {[%clk 0:01:47]} 21. Qc2 {[%clk 0:01:23]}  Qxa2 {[%clk 0:01:47]} 22. Kh1 {[%clk 0:01:01]}  Qxc2 {[%clk 0:01:39]} 23. Rxc2 {[%clk 0:01:02]}  a5 {[%clk 0:01:24]} 24. Rfc1 {[%clk 0:00:57]}  Nd5 {[%clk 0:01:24]} 25. Bd4 {[%clk 0:00:53]}  f6 {[%clk 0:01:18]} 26. c6 {[%clk 0:00:50]}  Rdc8 {[%clk 0:01:17]} 27. Bb2 {[%clk 0:00:25]}  a4 {[%clk 0:01:17]} 28. bxa4 {[%clk 0:00:19]}  bxa4 {[%clk 0:01:16]} 29. Nd4 {[%clk 0:00:19]}  a3 {[%clk 0:01:13]} 30. Ba1 {[%clk 0:00:15]}  Kf7 {[%clk 0:01:11]} 31. Nb3 {[%clk 0:00:15]}  Rc7 {[%clk 0:01:05]} 32. g3 {[%clk 0:00:11]}  Ra6 {[%clk 0:01:03]} 33. Rc4 {[%clk 0:00:10]}  Ke7 {[%clk 0:01:01]} 34. f4 {[%clk 0:00:09]}  a2 {[%clk 0:00:52]} 35. Nd4 {[%clk 0:00:08]}  g6 {[%clk 0:00:43]} 36. R1c2 {[%clk 0:00:06]}  Ne3 {[%clk 0:00:32]} 37. Rxb4 {[%clk 0:00:04]}  Nxc2 {[%clk 0:00:32]} 38. Rb7 {[%clk 0:00:04]}  Rxc6 {[%clk 0:00:28]} 39. Nxc6+ {[%clk 0:00:04]}  Kd6 {[%clk 0:00:28]} 0-1


[Site "https://www.chess.com"]